fUSD/lending_fUSD_20250119
["ID","MTS","AMOUNT","RATE_DAILY","PERIOD"]
[349547304,1737291047268,-500.0,0.00019178,2]
[349547305,1737291047278,-500.0,0.00019178,2]
[349547306,1737291047289,-500.0,0.00019178,2]
[349547307,1737291047299,-702.96,0.00019178,2]
[349547308,1737291047309,-500.0,0.00019178,2]
[349547309,1737291047319,-500.0,0.00019178,2]
[349547310,1737291047329,-500.0,0.00019178,2]
[349547311,1737291047339,-515.22520554,0.00019178,2]
[349547312,1737291047349,-557.85,0.00019178,2]
[349547313,1737291047362,-500.0,0.00019178,2]
[349547314,1737291047372,-150.0,0.00019178,2]
[349547315,1737291047383,-500.0,0.00019178,2]
[349547316,1737291047392,-1575.53,0.00019178,2]
[349547317,1737291047403,-2369.78,0.00019178,2]
[349547318,1737291047414,-500.0,0.00019178,2]
[349547319,1737291047423,-1239.26,0.00019178,2]
[349547320,1737291047433,-500.0,0.00019178,2]
[349547321,1737291047443,-500.0,0.00019178,2]
[349547322,1737291047454,-901.63,0.00019178,2]
[349547323,1737291047463,-502.4827353,0.00019178,2]
[349547324,1737291047473,-500.0,0.00019178,2]
[349547325,1737291047482,-500.0,0.00019178,2]
[349547326,1737291047492,-618.49,0.00019178,2]
[349547327,1737291047502,-5000.0,0.00019178,2]
[349547328,1737291047511,-500.0,0.00019178,2]
[349547329,1737291047521,-2511.42,0.00019178,2]
[349547330,1737291047531,-660.24,0.00019178,2]
[349547331,1737291047541,-500.0,0.00019178,2]
[349547332,1737291047550,-1431.7,0.00019178,2]
[349547333,1737291047560,-10206.45,0.00019178,2]
[349547334,1737291047570,-505.14738072,0.00019178,2]
[349547335,1737291047579,-500.0,0.00019178,2]
[349547336,1737291047589,-500.0,0.00019178,2]
[349547337,1737291047598,-293.317047,0.00019178,2]
[349547338,1737291047612,-500.0,0.00019178,2]
[349547339,1737291047622,-2003.5,0.00019178,2]
[349547340,1737291047631,-500.0,0.00019178,2]
[349547341,1737291047641,-1320.89,0.00019178,2]
[349547342,1737291047650,-500.0,0.00019178,2]
[349547343,1737291047661,-500.0,0.00019178,2]
[349547344,1737291047671,-500.0,0.00019178,2]
[349547345,1737291047680,-500.0,0.00019178,2]
[349547346,1737291047690,-538.3407219,0.00019178,2]
[349547347,1737291047700,-500.0,0.00019178,2]
[349547348,1737291047710,-500.0,0.00019178,2]
[349547349,1737291047720,-500.0,0.00019178,2]
[349547350,1737291047730,-436.72045769,0.00019178,2]
[349547351,1737291047739,-500.0,0.00019178,2]
[349547352,1737291047749,-520.54,0.00019178,2]
[349547353,1737291047758,-500.0,0.00019178,2]
[349547354,1737291047768,-500.0,0.00019178,2]
[349547355,1737291047778,-500.89400238,0.00019178,2]
[349547356,1737291047788,-1480.87,0.00019178,2]
[349547357,1737291047798,-500.0,0.00019178,2]
[349547358,1737291047808,-500.0,0.00019178,2]
[349547359,1737291047818,-500.0,0.00019178,2]
[349547360,1737291047828,-439.294167,0.00019178,2]
[349547361,1737291047838,-501.16700539,0.00019178,2]
[349547362,1737291047849,-439.294167,0.00019178,2]
[349547363,1737291047862,-500.0,0.00019178,2]
[349547364,1737291047872,-439.294167,0.00019178,2]
[349547365,1737291047882,-439.294167,0.00019178,2]
[349547366,1737291047892,-501.26931442,0.00019178,2]
[349547367,1737291047902,-444.87112688,0.00019178,2]
[349547368,1737291047912,-500.0,0.00019178,2]
[349547369,1737291047922,-500.0,0.00019178,2]
[349547370,1737291047933,-439.294167,0.00019178,2]
[349547371,1737291047944,-584.32,0.00019178,2]
[349547372,1737291047954,-439.294167,0.00019178,2]
[349547373,1737291047963,-439.294167,0.00019178,2]
[349547374,1737291047974,-439.294167,0.00019178,2]
[349547375,1737291047983,-500.0,0.00019178,2]
[349547376,1737291047993,-500.0,0.00019178,2]
[349547377,1737291048003,-1966.5,0.00019178,2]
[349547378,1737291048012,-542.4,0.00019178,2]
[349547379,1737291048023,-500.0,0.00019178,2]
[349547380,1737291048034,-579.11,0.00019178,2]
[349547381,1737291048043,-500.0,0.00019178,2]
[349547382,1737291048053,-500.53065654,0.00019178,2]
[349547383,1737291048063,-769.28,0.00019178,2]
[349547384,1737291048073,-763.38,0.00019178,2]
[349547385,1737291048083,-509.05346392,0.00019178,2]
[349547386,1737291048092,-500.0,0.00019178,2]
[349547387,1737291048102,-500.0,0.00019178,2]
[349547388,1737291048116,-151.0,0.00019178,2]
[349547389,1737291048126,-151.0,0.00019178,2]
[349547390,1737291048136,-500.565385,0.00019178,2]
[349547391,1737291048146,-151.0,0.00019178,2]
[349547392,1737291048156,-151.0,0.00019178,2]
[349547393,1737291048166,-500.0,0.00019178,2]
[349547394,1737291048176,-500.0,0.00019178,2]
[349547395,1737291048187,-437.60101049,0.00019178,2]
[349547396,1737291048196,-500.0,0.00019178,2]
[349547397,1737291048206,-152.135875,0.00019178,2]
[349547398,1737291048215,-500.0,0.00019178,2]
[349547399,1737291048225,-500.0,0.00019178,2]
[349547400,1737291048235,-500.0,0.00019178,2]
[349547401,1737291048246,-500.0,0.00019178,2]
[349547402,1737291048255,-500.0,0.00019178,2]
[349547403,1737291048265,-1128.893429,0.00019178,2]
[349547404,1737291048275,-1000.68,0.00019178,2]
[349547405,1737291048286,-1394.781451,0.00019178,2]
[349547406,1737291048296,-533.4,0.00019178,2]
[349547407,1737291048306,-500.0,0.00019178,2]
[349547408,1737291048316,-1072.77,0.00019178,2]
[349547409,1737291048326,-500.0,0.00019178,2]
[349547410,1737291048336,-500.0,0.00019178,2]
[349547411,1737291048345,-200.0,0.00019178,2]
[349547412,1737291048356,-500.0,0.00019178,2]
[349547413,1737291048372,-1091.5,0.00019178,2]
[349547414,1737291048382,-982.51,0.00019178,2]
[349547415,1737291048392,-1394.781451,0.00019178,2]
[349547416,1737291048403,-1079.61,0.00019178,2]
[349547417,1737291048414,-1400.7,0.00019178,2]
[349547418,1737291048619,-1394.781451,0.00019178,2]
[349547419,1737291048630,-1394.781451,0.00019178,2]
[349547420,1737291048640,-1001.37,0.00019178,2]
[349547421,1737291048650,-500.0,0.00019178,2]
[349547422,1737291048660,-500.0,0.00019178,2]
[349547423,1737291048670,-1394.781451,0.00019178,2]
[349547424,1737291048680,-1394.781451,0.00019178,2]
[349547425,1737291048690,-500.0,0.00019178,2]
[349547426,1737291048700,-1394.781451,0.00019178,2]
[349547427,1737291048710,-1340.1,0.00019178,2]
[349547428,1737291048720,-1394.781451,0.00019178,2]
[349547429,1737291048730,-616.4,0.00019178,2]
[349547430,1737291048739,-506.02834648,0.00019178,2]
[349547431,1737291048749,-500.0,0.00019178,2]
[349547432,1737291048759,-538.89,0.00019178,2]
[349547433,1737291048769,-500.0,0.00019178,2]
[349547434,1737291048779,-902.61,0.00019178,2]
[349547435,1737291048788,-296.17631208,0.00019178,2]
[349547436,1737291048798,-500.0,0.00019178,2]
[349547437,1737291048807,-571.92,0.00019178,2]
[349547438,1737291048817,-647.43938212,0.00019178,2]
[349547439,1737291048828,-500.0,0.00019178,2]
[349547440,1737291048838,-500.0,0.00019178,2]
[349547441,1737291048847,-500.0,0.00019178,2]
[349547442,1737291048859,-500.0,0.00019178,2]
[349547443,1737291048869,-500.0,0.00019178,2]
[349547444,1737291048879,-500.0,0.00019178,2]
[349547445,1737291048889,-1408.48,0.00019178,2]
[349547446,1737291048899,-505.26287651,0.00019178,2]
[349547447,1737291048909,-500.0,0.00019178,2]
[349547448,1737291048919,-2076.66,0.00019178,2]
[349547449,1737291048929,-500.0,0.00019178,2]
[349547450,1737291048938,-500.0,0.00019178,2]
[349547451,1737291048948,-518.98,0.00019178,2]
[349547452,1737291048958,-947.44,0.00019178,2]
[349547453,1737291048968,-500.0,0.00019178,2]
[349547454,1737291048978,-500.0,0.00019178,2]
[349547455,1737291048988,-501.66578676,0.00019178,2]
[349547456,1737291048998,-500.0,0.00019178,2]
[349547457,1737291049008,-500.0,0.00019178,2]
[349547458,1737291049018,-500.0,0.00019178,2]
[349547459,1737291049028,-1012.47,0.00019178,2]
[349547460,1737291049038,-500.0,0.00019178,2]
[349547461,1737291049047,-500.0,0.00019178,2]
[349547462,1737291049057,-934.43,0.00019178,2]
[349547463,1737291049067,-500.0,0.00019178,2]
[349547464,1737291049077,-690.04,0.00019178,2]
[349547465,1737291049086,-1057.3,0.00019178,2]
[349547466,1737291049096,-151.0,0.00019178,2]
[349547467,1737291049105,-151.0,0.00019178,2]
[349547468,1737291049118,-500.0,0.00019178,2]
[349547469,1737291049127,-151.0,0.00019178,2]
[349547470,1737291049136,-500.0,0.00019178,2]
[349547471,1737291049146,-2496.37,0.00019178,2]
[349547472,1737291049156,-151.0,0.00019178,2]
[349547473,1737291049166,-1109.729,0.00019178,2]
[349547474,1737291049175,-210.90656442,0.00019178,2]
[349547475,1737291049185,-163.56921358,0.0001918,2]
[349547476,1737291049194,-150.0,0.00019207,2]
[349547477,1737291049204,-163.56921358,0.00019215,2]
[349547478,1737291049214,-150.0,0.00019228,2]
[349547479,1737291049223,-150.0,0.00019235,2]
[349547480,1737291049233,-150.0,0.00019239,2]
[349547481,1737291049243,-163.56921358,0.00019249,2]
[349547482,1737291049252,-151.0,0.00019252,2]
[349547483,1737291049262,-151.0,0.00019252,2]
[349547484,1737291049272,-608.366717,0.00019252,2]
[349547485,1737291049281,-608.366717,0.00019252,2]
[349547486,1737291049291,-156.895581,0.00019252,2]
[349547487,1737291049301,-237.006715,0.00019252,2]
[349547488,1737291049310,-156.895581,0.00019252,2]
[349547489,1737291049319,-237.006715,0.00019252,2]
[349547490,1737291049329,-151.0,0.00019252,2]
[349547491,1737291049339,-1499.614895,0.00019252,2]
[349547492,1737291049349,-1499.614895,0.00019252,2]
[349547493,1737291049358,-151.0,0.00019252,2]
[349547494,1737291049372,-192.83471,0.00019252,2]
[349547495,1737291049382,-192.83471,0.00019252,2]
[349547496,1737291049392,-439.294167,0.00019252,2]
[349547497,1737291049402,-439.294167,0.00019252,2]
[349547498,1737291049412,-151.0,0.00019252,2]
[349547499,1737291049421,-1394.781451,0.00019252,2]
[349547500,1737291049431,-1394.781451,0.00019252,2]
[349547501,1737291049442,-101174.91105527,0.00019252,2]
[349547502,1737291049452,-150.0,0.00019274,2]
[349547503,1737291049462,-163.56921358,0.00019283,2]
[349547504,1737291049471,-102485.67,0.00019306,2]
[349547505,1737291049481,-151.0,0.00019306,2]
[349547506,1737291049490,-271.344972,0.00019306,2]
[349547507,1737291049499,-151.0,0.00019306,2]
[349547508,1737291049509,-608.366717,0.00019306,2]
[349547509,1737291049518,-608.366717,0.00019306,2]
[349547510,1737291049529,-156.895581,0.00019306,2]
[349547511,1737291049538,-237.006715,0.00019306,2]
[349547512,1737291049548,-156.895581,0.00019306,2]
[349547513,1737291049558,-237.006715,0.00019306,2]
[349547514,1737291049568,-151.0,0.00019306,2]
[349547515,1737291049577,-1499.614895,0.00019306,2]
[349547516,1737291049586,-1499.614895,0.00019306,2]
[349547517,1737291049596,-151.0,0.00019306,2]
[349547518,1737291049605,-192.83471,0.00019306,2]
[349547519,1737291049617,-192.83471,0.00019306,2]
[349547520,1737291049626,-439.294167,0.00019306,2]
[349547521,1737291049636,-439.294167,0.00019306,2]
[349547522,1737291049646,-151.0,0.00019306,2]
[349547523,1737291049656,-1394.781451,0.00019306,2]
[349547524,1737291049665,-1394.781451,0.00019306,2]
[349547525,1737291049676,-150.0,0.00019315,2]
[349547526,1737291049685,-163.56921358,0.00019317,2]
[349547527,1737291049696,-500.0,0.0001932,2]
[349547528,1737291049705,-150.0,0.00019326,2]
[349547529,1737291049715,-150.0,0.00019338,2]
[349547530,1737291049725,-200.0,0.00019347,2]
[349547531,1737291049735,-1142.24708071,0.00019351,2]
[349547532,1737291049745,-163.56921358,0.00019351,2]
[349547533,1737291049758,-4090.25909798,0.00019353,2]
[349547534,1737291049768,-2483.87617857,0.00019355,2]
[349547535,1737291049778,-200.0,0.00019362,2]
[349547536,1737291049787,-1872.5864615,0.00019363,2]
[349547537,1737291049797,-240.85380846,0.00019365,2]
[349547538,1737291049807,-200.0,0.00019368,2]
[349547539,1737291049816,-1685.97665924,0.0001937,2]
[349547540,1737291049825,-438.33,0.0001937,2]
[349547541,1737291049835,-438.33,0.0001937,2]
[349547542,1737291049845,-438.33,0.0001937,2]
[349547543,1737291049854,-771.45840193,0.0001937,2]
[349547544,1737291049868,-200.0,0.0001937,2]
[349547545,1737291049877,-200.0,0.0001937,2]
[349547546,1737291049887,-57878.80483093,0.00019371,2]
[349547547,1737291049897,-2825.13266609,0.00019377,2]
[349547548,1737291049907,-57878.80483093,0.00019382,2]
[349547549,1737291049916,-300.88,0.00019382,2]
[349547550,1737291049926,-150.0,0.00019382,2]
[349547551,1737291049935,-150.0,0.00019382,2]
[349547552,1737291049945,-200.0,0.00019383,2]
[349547553,1737291049954,-354.83945409,0.00019386,2]
[349547554,1737291049964,-2483.87617857,0.00019389,2]
[349547555,1737291049974,-57878.80483093,0.0001939,2]
[349547556,1737291049983,-1685.97665924,0.0001939,2]
[349547557,1737291049993,-2825.13266609,0.00019392,2]
[349547558,1737291050002,-354.83945409,0.00019394,2]
[349547559,1737291050012,-1685.97665924,0.00019396,2]
[349547560,1737291050022,-3822.86844115,0.00019397,2]
[349547561,1737291050031,-500.0,0.00019403,2]
[349547562,1737291050040,-500.0,0.00019403,2]
[349547563,1737291050050,-500.0,0.00019403,2]
[349547564,1737291050060,-500.0,0.00019403,2]
[349547565,1737291050070,-500.0,0.00019403,2]
[349547566,1737291050079,-448.5684,0.00019403,2]
[349547567,1737291050089,-554.1521,0.00019403,2]
[349547568,1737291050099,-354.83945409,0.00019404,2]
[349547569,1737291050109,-260.02203006,0.00019409,2]
[349547570,1737291050121,-260.02203006,0.0001941,2]
[349547571,1737291050130,-200.0,0.0001941,2]
[349547572,1737291050139,-4090.25909798,0.00019411,2]
[349547573,1737291050149,-354.83945409,0.00019412,2]
[349547574,1737291050158,-3822.86844115,0.00019413,2]
[349547575,1737291050168,-2483.87617857,0.00019413,2]
[349547576,1737291050178,-2825.13266609,0.00019415,2]
[349547577,1737291050187,-240.85380846,0.00019419,2]
[349547578,1737291050197,-788.74,0.0001942,2]
[349547579,1737291050206,-1872.5864615,0.00019421,2]
[349547580,1737291050216,-1685.97665924,0.00019422,2]
[349547581,1737291050225,-150.0,0.00019425,2]
[349547582,1737291050235,-200.0,0.00019427,2]
[349547583,1737291050244,-3822.86844115,0.0001943,2]
[349547584,1737291050253,-771.45840193,0.00019431,2]
[349547585,1737291050263,-150.0,0.00019432,2]
[349547586,1737291050272,-771.45840193,0.00019434,2]
[349547587,1737291050282,-28631.813686,0.00019435,2]
[349547588,1737291050291,-771.45840193,0.00019437,2]
[349547589,1737291050301,-1872.5864615,0.00019438,2]
[349547590,1737291050311,-1872.5864615,0.00019445,2]
[349547591,1737291050321,-4090.25909798,0.00019445,2]
[349547592,1737291050331,-2825.13266609,0.00019446,2]
[349547593,1737291050341,-260.02203006,0.00019448,2]
[349547594,1737291050351,-315.2787311,0.00019449,2]
[349547595,1737291050365,-28631.813686,0.0001945,2]
[349547596,1737291050375,-500.0,0.0001945,2]
[349547597,1737291050384,-150.0,0.0001945,2]
[349547598,1737291050394,-218189.01304199,0.00019451,2]
[349547599,1737291050403,-105350.99487032,0.00019451,2]
[349547600,1737291050413,-71681.71393942,0.00019451,2]
[349547601,1737291050423,-497.050586,0.00019451,2]
[349547602,1737291050433,-151.0,0.00019451,2]
[349547603,1737291050443,-151.0,0.00019451,2]
[349547604,1737291050452,-151.0,0.00019451,2]
[349547605,1737291050462,-608.366717,0.00019451,2]
[349547606,1737291050471,-608.366717,0.00019451,2]
[349547607,1737291050481,-608.366717,0.00019451,2]
[349547608,1737291050491,-608.366717,0.00019451,2]
[349547609,1737291050501,-608.366717,0.00019451,2]
[349547610,1737291050510,-608.366717,0.00019451,2]
[349547611,1737291050520,-156.895581,0.00019451,2]
[349547612,1737291050529,-156.895581,0.00019451,2]
[349547613,1737291050539,-156.895581,0.00019451,2]
[349547614,1737291050549,-237.006715,0.00019451,2]
[349547615,1737291050558,-237.006715,0.00019451,2]
[349547616,1737291050569,-237.006715,0.00019451,2]
[349547617,1737291050578,-156.895581,0.00019451,2]
[349547618,1737291050588,-156.895581,0.00019451,2]
[349547619,1737291050598,-237.006715,0.00019451,2]
[349547620,1737291050607,-156.895581,0.00019451,2]
[349547621,1737291050621,-237.006715,0.00019451,2]
[349547622,1737291050631,-237.006715,0.00019451,2]
[349547623,1737291050640,-217.39473,0.00019451,2]
[349547624,1737291050650,-1499.614895,0.00019451,2]
[349547625,1737291050659,-1499.614895,0.00019451,2]
[349547626,1737291050670,-1499.614895,0.00019451,2]
[349547627,1737291050680,-1499.614895,0.00019451,2]
[349547628,1737291050690,-151.0,0.00019451,2]
[349547629,1737291050701,-151.0,0.00019451,2]
[349547630,1737291050711,-192.83471,0.00019451,2]
[349547631,1737291050721,-192.83471,0.00019451,2]
[349547632,1737291050731,-192.83471,0.00019451,2]
[349547633,1737291050741,-192.83471,0.00019451,2]
[349547634,1737291050751,-439.294167,0.00019451,2]
[349547635,1737291050760,-439.294167,0.00019451,2]
[349547636,1737291050770,-439.294167,0.00019451,2]
[349547637,1737291050780,-439.294167,0.00019451,2]
[349547638,1737291050790,-151.0,0.00019451,2]
[349547639,1737291050800,-151.0,0.00019451,2]
[349547640,1737291050809,-1394.781451,0.00019451,2]
[349547641,1737291050820,-1394.781451,0.00019451,2]
[349547642,1737291050830,-1394.781451,0.00019451,2]
[349547643,1737291050840,-1394.781451,0.00019451,2]
[349547644,1737291050850,-512.369967,0.00019452,2]
[349547645,1737291050862,-1011.813114,0.00019452,2]
[349547646,1737291050873,-150.0,0.00019452,2]
[349547647,1737291050882,-596.45266775,0.00019452,2]
[349547648,1737291050891,-500.0,0.00019452,2]
[349547649,1737291050900,-500.0,0.00019452,2]
[349547650,1737291050910,-500.0,0.00019452,2]
[349547651,1737291050919,-500.0,0.00019452,2]
[349547652,1737291050928,-500.0,0.00019452,2]
[349547653,1737291051004,-500.0,0.00019452,2]
[349547654,1737291051013,-568.84811581,0.00019452,2]
[349547655,1737291051023,-500.0,0.00019452,2]
[349547656,1737291051032,-500.0,0.00019452,2]
[349547657,1737291051042,-500.0,0.00019452,2]
[349547658,1737291051051,-500.0,0.00019452,2]
[349547659,1737291051061,-500.0,0.00019452,2]
[349547660,1737291051070,-500.0,0.00019452,2]
[349547661,1737291051080,-500.0,0.00019452,2]
[349547662,1737291051090,-500.0,0.00019452,2]
[349547663,1737291051100,-500.0,0.00019452,2]
[349547664,1737291051113,-851.25,0.00019452,2]
[349547665,1737291051123,-500.0,0.00019452,2]
[349547666,1737291051132,-503.51780733,0.00019452,2]
[349547667,1737291051141,-500.0,0.00019452,2]
[349547668,1737291051150,-500.0,0.00019452,2]
[349547669,1737291051160,-511.69,0.00019452,2]
[349547670,1737291051169,-500.0,0.00019452,2]
[349547671,1737291051178,-500.0,0.00019452,2]
[349547672,1737291051187,-986.07,0.00019452,2]
[349547673,1737291051196,-500.0,0.00019452,2]
[349547674,1737291051205,-500.0,0.00019452,2]
[349547675,1737291051215,-500.0,0.00019452,2]
[349547676,1737291051224,-500.0,0.00019452,2]
[349547677,1737291051234,-500.0,0.00019452,2]
[349547678,1737291051243,-500.0,0.00019452,2]
[349547679,1737291051252,-500.0,0.00019452,2]
[349547680,1737291051261,-500.0,0.00019452,2]
[349547681,1737291051270,-500.0,0.00019452,2]
[349547682,1737291051280,-500.0,0.00019452,2]
[349547683,1737291051289,-500.0,0.00019452,2]
[349547684,1737291051299,-521.72017499,0.00019452,2]
[349547685,1737291051309,-500.0,0.00019452,2]
[349547686,1737291051320,-500.0,0.00019452,2]
[349547687,1737291051329,-500.0,0.00019452,2]
[349547688,1737291051339,-517.25858876,0.00019452,2]
[349547689,1737291051348,-500.0,0.00019452,2]
[349547690,1737291051358,-500.0,0.00019452,2]
[349547691,1737291051374,-500.0,0.00019452,2]
[349547692,1737291051383,-500.0,0.00019452,2]
[349547693,1737291051392,-519.22147074,0.00019452,2]
[349547694,1737291051402,-547.22,0.00019452,2]
[349547695,1737291051411,-500.0,0.00019452,2]
[349547696,1737291051421,-500.0,0.00019452,2]
[349547697,1737291051431,-500.0,0.00019452,2]
[349547698,1737291051440,-385.68695762,0.00019452,2]
[349547699,1737291051450,-519.41997753,0.00019452,2]
[349547700,1737291051460,-500.0,0.00019452,2]
[349547701,1737291051469,-500.0,0.00019452,2]
[349547702,1737291051479,-512.42714737,0.00019452,2]
[349547703,1737291051488,-500.0,0.00019452,2]
[349547704,1737291051497,-500.0,0.00019452,2]
[349547705,1737291051506,-500.0,0.00019452,2]
[349547706,1737291051515,-500.0,0.00019452,2]
[349547707,1737291051524,-506.60787056,0.00019452,2]
[349547708,1737291051534,-500.0,0.00019452,2]
[349547709,1737291051543,-707.09,0.00019452,2]
[349547710,1737291051552,-500.0,0.00019452,2]
[349547711,1737291051561,-500.0,0.00019452,2]
[349547712,1737291051570,-500.0,0.00019452,2]
[349547713,1737291051579,-660.78,0.00019452,2]
[349547714,1737291051588,-500.0,0.00019452,2]
[349547715,1737291051597,-500.0,0.00019452,2]
[349547716,1737291051607,-500.0,0.00019452,2]
[349547717,1737291051619,-500.0,0.00019452,2]
[349547718,1737291051629,-500.0,0.00019452,2]
[349547719,1737291051638,-515.18541379,0.00019452,2]
[349547720,1737291051647,-925.92,0.00019452,2]
[349547721,1737291051656,-500.0,0.00019452,2]
[349547722,1737291051666,-500.0,0.00019452,2]
[349547723,1737291051676,-500.0,0.00019452,2]
[349547724,1737291051685,-500.0,0.00019452,2]
[349547725,1737291051694,-500.0,0.00019452,2]
[349547726,1737291051703,-500.0,0.00019452,2]
[349547727,1737291051713,-500.0,0.00019452,2]
[349547728,1737291051722,-500.0,0.00019452,2]
[349547729,1737291051732,-500.0,0.00019452,2]
[349547730,1737291051741,-507.66154877,0.00019452,2]
[349547731,1737291051750,-500.0,0.00019452,2]
[349547732,1737291051760,-500.0,0.00019452,2]
[349547733,1737291051769,-215.85140393,0.00019452,2]
[349547734,1737291051778,-536.42839358,0.00019452,2]
[349547735,1737291051787,-500.0,0.00019452,2]
[349547736,1737291051797,-500.0,0.00019452,2]
[349547737,1737291051806,-500.0,0.00019452,2]
[349547738,1737291051815,-500.0,0.00019452,2]
[349547739,1737291051825,-500.0,0.00019452,2]
[349547740,1737291051834,-531.94140268,0.00019452,2]
[349547741,1737291051843,-500.0,0.00019452,2]
[349547742,1737291051852,-500.0,0.00019452,2]
[349547743,1737291051861,-282.08921212,0.00019452,2]
[349547744,1737291051876,-500.0,0.00019452,2]
[349547745,1737291051885,-517.45275328,0.00019452,2]
[349547746,1737291051894,-512.15493597,0.00019452,2]
[349547747,1737291051904,-500.0,0.00019452,2]
[349547748,1737291051913,-530.99197898,0.00019452,2]
[349547749,1737291051922,-500.0,0.00019452,2]
[349547750,1737291051931,-636.87,0.00019452,2]
[349547751,1737291051940,-366.50564148,0.00019452,2]
[349547752,1737291051950,-500.0,0.00019452,2]
[349547753,1737291051959,-500.0,0.00019452,2]
[349547754,1737291051968,-500.0,0.00019452,2]
[349547755,1737291051978,-500.0,0.00019452,2]
[349547756,1737291051987,-497.050586,0.00019452,2]
[349547757,1737291051996,-497.050586,0.00019452,2]
[349547758,1737291052006,-500.0,0.00019452,2]
[349547759,1737291052015,-497.050586,0.00019452,2]
[349547760,1737291052024,-810.33,0.00019452,2]
[349547761,1737291052033,-497.050586,0.00019452,2]
[349547762,1737291052042,-500.0,0.00019452,2]
[349547763,1737291052051,-511.10891187,0.00019452,2]
[349547764,1737291052060,-500.0,0.00019452,2]
[349547765,1737291052069,-500.0,0.00019452,2]
[349547766,1737291052079,-508.51939562,0.00019452,2]
[349547767,1737291052088,-476.50348355,0.00019452,2]
[349547768,1737291052098,-500.0,0.00019452,2]
[349547769,1737291052107,-524.01064264,0.00019452,2]
[349547770,1737291052124,-653.63,0.00019452,2]
[349547771,1737291052134,-500.0,0.00019452,2]
[349547772,1737291052144,-500.0,0.00019452,2]
[349547773,1737291052154,-500.0,0.00019452,2]
[349547774,1737291052163,-500.0,0.00019452,2]
[349547775,1737291052173,-512.52223098,0.00019452,2]
[349547776,1737291052182,-500.0,0.00019452,2]
[349547777,1737291052191,-500.0,0.00019452,2]
[349547778,1737291052201,-500.0,0.00019452,2]
[349547779,1737291052218,-500.0,0.00019452,2]
[349547780,1737291052228,-500.0,0.00019452,2]
[349547781,1737291052237,-500.0,0.00019452,2]
[349547782,1737291052247,-500.0,0.00019452,2]
[349547783,1737291052257,-500.0,0.00019452,2]
[349547784,1737291052266,-500.0,0.00019452,2]
[349547785,1737291052276,-500.0,0.00019452,2]
[349547786,1737291052285,-500.0,0.00019452,2]
[349547787,1737291052294,-500.0,0.00019452,2]
[349547788,1737291052303,-500.0,0.00019452,2]
[349547789,1737291052312,-500.0,0.00019452,2]
[349547790,1737291052321,-500.0,0.00019452,2]
[349547791,1737291052330,-500.0,0.00019452,2]
[349547792,1737291052339,-500.0,0.00019452,2]
[349547793,1737291052349,-500.0,0.00019452,2]
[349547794,1737291052358,-500.0,0.00019452,2]
[349547795,1737291052374,-500.0,0.00019452,2]
[349547796,1737291052383,-500.0,0.00019452,2]
[349547797,1737291052393,-500.0,0.00019452,2]
[349547798,1737291052402,-500.0,0.00019452,2]
[349547799,1737291052412,-500.0,0.00019452,2]
[349547800,1737291052421,-500.0,0.00019452,2]
[349547801,1737291052430,-500.0,0.00019452,2]
[349547802,1737291052439,-500.0,0.00019452,2]
[349547803,1737291052449,-500.0,0.00019452,2]